[Event "*** Titled Tuesday Blitz"]
[Site "Chess.com"]
[Date "2019.06.04"]
[Round "5"]
[White "Shant_Sargsyan"]
[Black "Mischuk_D"]
[Result "1/2-1/2"]
[WhiteElo "3025"]
[BlackElo "2717"]
[TimeControl "180+2"]
[EndTime "14:08:29 PDT"]
[Termination "Game drawn by agreement"]

1. d4 {[%clk 0:03:01.7]} 1... Nf6 {[%clk 0:03:00.6]} 2. c4 {[%clk 0:03:03.2]}
2... g6 {[%clk 0:03:01.6]} 3. Nc3 {[%clk 0:03:04.6]} 3... d5 {[%clk 0:03:02.2]}
4. Bf4 {[%clk 0:03:03.9]} 4... Bg7 {[%clk 0:03:02.9]} 5. e3 {[%clk 0:03:05.5]}
5... O-O {[%clk 0:03:03.4]} 6. Rc1 {[%clk 0:03:06.9]} 6... Be6 {[%clk
0:03:03.9]} 7. cxd5 {[%clk 0:03:05.8]} 7... Nxd5 {[%clk 0:03:04.7]} 8. Nxd5
{[%clk 0:03:07.7]} 8... Qxd5 {[%clk 0:03:05.2]} 9. b3 {[%clk 0:03:09.2]} 9... c6
{[%clk 0:03:02.8]} 10. Nf3 {[%clk 0:03:07.7]} 10... Qa5+ {[%clk 0:03:01.6]} 11.
Qd2 {[%clk 0:03:08.6]} 11... Qxd2+ {[%clk 0:03:02.6]} 12. Nxd2 {[%clk
0:03:10.3]} 12... Nd7 {[%clk 0:03:01.8]} 13. Bg3 {[%clk 0:03:11.7]} 13... Bd5
{[%clk 0:02:52.9]} 14. f3 {[%clk 0:03:09.6]} 14... a5 {[%clk 0:02:46.8]} 15. Bc4
{[%clk 0:03:10.2]} 15... Nb6 {[%clk 0:02:43.5]} 16. Ke2 {[%clk 0:03:09.6]} 16...
a4 {[%clk 0:02:37.9]} 17. Bc7 {[%clk 0:03:00]} 17... Nxc4 {[%clk 0:02:36.6]} 18.
bxc4 {[%clk 0:03:01]} 18... Be6 {[%clk 0:02:37.9]} 19. Rc2 {[%clk 0:02:55.1]}
19... b5 {[%clk 0:02:22.2]} 20. Rb1 {[%clk 0:02:55.7]} 20... Rfc8 {[%clk
0:02:19.6]} 21. Bg3 {[%clk 0:02:55.5]} 21... h5 {[%clk 0:02:09.7]} 22. a3 {[%clk
0:02:52.8]} 22... Bd7 {[%clk 0:02:01.1]} 23. Ne4 {[%clk 0:02:40]} 23... Bf8
{[%clk 0:01:58.6]} 24. Nc5 {[%clk 0:02:39.2]} 24... Be8 {[%clk 0:01:59.7]} 25.
e4 {[%clk 0:02:37]} 25... e6 {[%clk 0:01:59]} 26. Ke3 {[%clk 0:02:31]} 26... Rd8
{[%clk 0:01:49.8]} 27. Bc7 {[%clk 0:02:29.3]} 27... Rdc8 {[%clk 0:01:50.3]} 28.
Be5 {[%clk 0:02:29.8]} 28... Be7 {[%clk 0:01:49.5]} 29. Bg3 {[%clk 0:02:24.4]}
29... Rd8 {[%clk 0:01:49.8]} 30. Rc3 {[%clk 0:02:10.8]} 30... h4 {[%clk
0:01:50.1]} 31. Bf2 {[%clk 0:02:05.8]} 31... Kg7 {[%clk 0:01:42.6]} 32. Ke2
{[%clk 0:02:02.9]} 32... g5 {[%clk 0:01:26.2]} 33. Rd1 {[%clk 0:01:43]} 33...
Kg6 {[%clk 0:01:21.3]} 34. Nd3 {[%clk 0:01:40.2]} 34... f6 {[%clk 0:01:18.2]}
35. c5 {[%clk 0:01:41.7]} 35... Bf7 {[%clk 0:01:14.5]} 36. Nb4 {[%clk
0:01:43.1]} 36... Rac8 {[%clk 0:01:15.5]} 37. Rcd3 {[%clk 0:01:44.5]} 37... f5
{[%clk 0:01:07]} 38. Be3 {[%clk 0:01:43.2]} 38... Kg7 {[%clk 0:01:02.2]} 39. Kd2
{[%clk 0:01:40.6]} 39... fxe4 {[%clk 0:01:02.5]} 40. fxe4 {[%clk 0:01:36.7]}
40... Bg6 {[%clk 0:01:03.8]} 41. Rc3 {[%clk 0:01:32.2]} 41... Bxe4 {[%clk
0:01:04.6]} 42. g3 {[%clk 0:01:33.2]} 42... hxg3 {[%clk 0:01:03.2]} 43. hxg3
{[%clk 0:01:35.1]} 43... Rh8 {[%clk 0:01:04.3]} 44. Kc1 {[%clk 0:01:33]} 44...
Rh3 {[%clk 0:01:00.8]} 45. Rg1 {[%clk 0:01:05.3]} 45... Rf8 {[%clk 0:00:56]} 46.
Bd2 {[%clk 0:01:05.7]} 46... Rf3 {[%clk 0:00:45.3]} 47. Re1 {[%clk 0:01:00.5]}
47... Rxc3+ {[%clk 0:00:37.4]} 48. Bxc3 {[%clk 0:01:02.4]} 48... Rh1 {[%clk
0:00:39]} 49. Rxh1 {[%clk 0:00:58.1]} 49... Bxh1 {[%clk 0:00:40]} 50. d5+ {[%clk
0:01:00]} 50... Kf7 {[%clk 0:00:40.1]} 51. d6 {[%clk 0:00:58.8]} 51... Bd8
{[%clk 0:00:39.7]} 52. Kd2 {[%clk 0:00:53.4]} 52... g4 {[%clk 0:00:32.5]} 53.
Kd3 {[%clk 0:00:54.2]} 53... Ke8 {[%clk 0:00:32.1]} 54. Be5 {[%clk 0:00:53.5]}
54... Kd7 {[%clk 0:00:32.4]} 55. Ke3 {[%clk 0:00:50.8]} 55... Bg5+ {[%clk
0:00:32.8]} 56. Bf4 {[%clk 0:00:52.6]} 56... Bf6 {[%clk 0:00:34.2]} 57. Nd3
{[%clk 0:00:53.9]} 57... Bd5 {[%clk 0:00:31.4]} 58. Kd2 {[%clk 0:00:23.2]} 58...
Bc4 {[%clk 0:00:27.2]} 59. Ne5+ {[%clk 0:00:23.8]} 59... Bxe5 {[%clk 0:00:27.8]}
60. Bxe5 {[%clk 0:00:25.7]} 60... Bd5 {[%clk 0:00:26.9]} 61. Kd3 {[%clk
0:00:26.6]} 61... Bb3 {[%clk 0:00:27.5]} 62. Ke3 {[%clk 0:00:26.8]} 62... Bd1
{[%clk 0:00:28.4]} 63. Bc3 {[%clk 0:00:27.9]} 63... Bf3 {[%clk 0:00:29.2]} 64.
Kf4 {[%clk 0:00:29.5]} 64... Bd1 {[%clk 0:00:30.3]} 1/2-1/2

[Event "*** Titled Tuesday Blitz"]
[Site "Chess.com"]
[Date "2019.06.04"]
[Round "5"]
[White "Gordima"]
[Black "ChessWeebs"]
[Result "0-1"]
[WhiteElo "2762"]
[BlackElo "2789"]
[TimeControl "180+2"]
[EndTime "14:08:31 PDT"]
[Termination "ChessWeebs won by resignation"]

1. Nf3 {[%clk 0:03:00.2]} 1... Nf6 {[%clk 0:02:52]} 2. c4 {[%clk 0:02:54.8]}
2... g6 {[%clk 0:02:52.3]} 3. Nc3 {[%clk 0:02:55.7]} 3... Bg7 {[%clk 0:02:52.8]}
4. e4 {[%clk 0:02:56.3]} 4... d6 {[%clk 0:02:53.9]} 5. d4 {[%clk 0:02:57.5]}
5... O-O {[%clk 0:02:55.3]} 6. Be2 {[%clk 0:02:58.6]} 6... e5 {[%clk 0:02:56.2]}
7. O-O {[%clk 0:02:59.9]} 7... Nc6 {[%clk 0:02:57.7]} 8. d5 {[%clk 0:03:01.4]}
8... Ne7 {[%clk 0:02:58.7]} 9. b4 {[%clk 0:03:03]} 9... c6 {[%clk 0:02:57.1]}
10. Bg5 {[%clk 0:02:53]} 10... h6 {[%clk 0:02:52.2]} 11. Be3 {[%clk 0:02:53.9]}
11... a5 {[%clk 0:02:51.4]} 12. a3 {[%clk 0:02:44.3]} 12... axb4 {[%clk
0:02:38.3]} 13. axb4 {[%clk 0:02:46.2]} 13... Rxa1 {[%clk 0:02:39.3]} 14. Qxa1
{[%clk 0:02:47]} 14... cxd5 {[%clk 0:02:37.2]} 15. cxd5 {[%clk 0:02:48]} 15...
Ng4 {[%clk 0:02:37.8]} 16. Ba7 {[%clk 0:02:40.8]} 16... f5 {[%clk 0:02:32.7]}
17. Nd2 {[%clk 0:02:39.2]} 17... Nf6 {[%clk 0:02:11.4]} 18. Qa5 {[%clk 0:02:29]}
18... fxe4 {[%clk 0:01:56.4]} 19. Qxd8 {[%clk 0:02:23.3]} 19... Rxd8 {[%clk
0:01:58.3]} 20. Bb6 {[%clk 0:02:24.7]} 20... Rf8 {[%clk 0:01:57.8]} 21. Bc4
{[%clk 0:02:22.5]} 21... Bf5 {[%clk 0:01:50.1]} 22. Bc7 {[%clk 0:02:13.5]} 22...
Nc8 {[%clk 0:01:41.9]} 23. Re1 {[%clk 0:02:02.2]} 23... Rf7 {[%clk 0:01:35.3]}
24. Nb5 {[%clk 0:01:48]} 24... Ne8 {[%clk 0:01:29.1]} 25. Bb8 {[%clk 0:01:41.9]}
25... b6 {[%clk 0:01:24.3]} 26. Ra1 {[%clk 0:01:18.3]} 26... h5 {[%clk
0:01:25.2]} 27. Nf1 {[%clk 0:01:04.1]} 27... Bf8 {[%clk 0:00:47.9]} 28. Ne3
{[%clk 0:01:03.6]} 28... Rb7 {[%clk 0:00:34.1]} 29. Ra8 {[%clk 0:01:03.8]} 29...
Kh7 {[%clk 0:00:35.3]} 30. h3 {[%clk 0:01:04.2]} 30... h4 {[%clk 0:00:35.7]} 31.
Kf1 {[%clk 0:01:04.4]} 31... Be7 {[%clk 0:00:36.5]} 32. Ke2 {[%clk 0:01:04.3]}
32... Kg7 {[%clk 0:00:37.9]} 33. Kd2 {[%clk 0:00:59.1]} 33... Kf7 {[%clk
0:00:39.1]} 34. Kc2 {[%clk 0:01:00.4]} 34... Kg7 {[%clk 0:00:40.5]} 35. Kb3
{[%clk 0:01:01.8]} 35... Kf7 {[%clk 0:00:42]} 36. Nc3 {[%clk 0:01:03.3]} 36...
Nc7 {[%clk 0:00:41.4]} 37. Bxc7 {[%clk 0:01:02.7]} 37... Rxc7 {[%clk 0:00:43.3]}
38. Bb5 {[%clk 0:01:02.3]} 38... Bg5 {[%clk 0:00:41.5]} 39. Bc6 {[%clk
0:01:01.4]} 39... Ra7 {[%clk 0:00:42.3]} 40. Rb8 {[%clk 0:00:47.5]} 40... Bxe3
{[%clk 0:00:43.3]} 41. fxe3 {[%clk 0:00:47.6]} 41... Ra1 {[%clk 0:00:45.2]} 42.
Rb7+ {[%clk 0:00:25.8]} 42... Kf6 {[%clk 0:00:45.5]} 43. Bd7 {[%clk 0:00:23.7]}
43... Bxd7 {[%clk 0:00:37.8]} 44. Rxd7 {[%clk 0:00:24.9]} 44... Re1 {[%clk
0:00:25.1]} 45. Rd8 {[%clk 0:00:17]} 45... Ne7 {[%clk 0:00:26.5]} 46. Rxd6+
{[%clk 0:00:18.2]} 46... Kf7 {[%clk 0:00:27.9]} 47. Rd7 {[%clk 0:00:18.8]} 47...
Ke8 {[%clk 0:00:29.3]} 48. Ra7 {[%clk 0:00:17.5]} 48... Rxe3 {[%clk 0:00:30.7]}
49. Kc4 {[%clk 0:00:18.9]} 49... Rd3 {[%clk 0:00:31.6]} 50. Ra8+ {[%clk
0:00:10.2]} 50... Kf7 {[%clk 0:00:32.5]} 51. Ra7 {[%clk 0:00:11.7]} 51... Rd4+
{[%clk 0:00:33.3]} 52. Kb5 {[%clk 0:00:07.6]} 52... Kf6 {[%clk 0:00:34]} 53. d6
{[%clk 0:00:07.4]} 53... Nf5 {[%clk 0:00:34.3]} 54. d7 {[%clk 0:00:07.7]} 54...
e3 {[%clk 0:00:34.5]} 55. Ne4+ {[%clk 0:00:08.8]} 55... Ke7 {[%clk 0:00:35.1]}
56. Nc3 {[%clk 0:00:07.4]} 56... Rxd7 {[%clk 0:00:34.6]} 57. Rxd7+ {[%clk
0:00:08.1]} 57... Kxd7 {[%clk 0:00:36.5]} 58. Kc4 {[%clk 0:00:07.4]} 58... Nd4
{[%clk 0:00:37.1]} 59. Kd3 {[%clk 0:00:08.3]} 59... e2 {[%clk 0:00:39]} 60. Kd2
{[%clk 0:00:09.8]} 60... Ke6 {[%clk 0:00:39.8]} 61. Na4 {[%clk 0:00:10.1]} 61...
b5 {[%clk 0:00:40.9]} 62. Nc3 {[%clk 0:00:11.4]} 62... Kf5 {[%clk 0:00:42]} 63.
Ke1 {[%clk 0:00:09.9]} 63... e4 {[%clk 0:00:41.4]} 64. Kf2 {[%clk 0:00:11.5]}
64... Ke5 {[%clk 0:00:43.3]} 65. Ke1 {[%clk 0:00:10.9]} 65... Kf4 {[%clk
0:00:44.4]} 66. Kf2 {[%clk 0:00:10.5]} 66... e3+ {[%clk 0:00:45.6]} 67. Ke1
{[%clk 0:00:12]} 67... Kg3 {[%clk 0:00:47.5]} 68. Nd5 {[%clk 0:00:10.6]} 68...
Kxg2 {[%clk 0:00:49]} 69. Nf4+ {[%clk 0:00:12.1]} 69... Kg3 {[%clk 0:00:49.7]}
70. Nxg6 {[%clk 0:00:12.2]} 70... Kxh3 {[%clk 0:00:50.7]} 71. Nxh4 {[%clk
0:00:11.5]} 71... Nc2+ {[%clk 0:00:50.8]} 72. Kxe2 {[%clk 0:00:13.1]} 72... Kxh4
{[%clk 0:00:52.5]} 73. Kd3 {[%clk 0:00:14.9]} 73... Kg3 {[%clk 0:00:53.8]} 0-1

[Event "*** Titled Tuesday Blitz"]
[Site "Chess.com"]
[Date "2019.06.04"]
[Round "5"]
[White "Zq1"]
[Black "VerdeNotte"]
[Result "1/2-1/2"]
[WhiteElo "2516"]
[BlackElo "2761"]
[TimeControl "180+2"]
[EndTime "14:08:31 PDT"]
[Termination "Game drawn by agreement"]

1. d4 {[%clk 0:03:01.9]} 1... Nf6 {[%clk 0:02:59.1]} 2. c4 {[%clk 0:03:02.4]}
2... g6 {[%clk 0:03:00.6]} 3. Nc3 {[%clk 0:03:03.5]} 3... Bg7 {[%clk 0:03:01.6]}
4. e4 {[%clk 0:03:04.6]} 4... d6 {[%clk 0:03:02.9]} 5. Nf3 {[%clk 0:03:05.8]}
5... O-O {[%clk 0:03:02.5]} 6. Be2 {[%clk 0:03:07]} 6... e5 {[%clk 0:03:03.4]}
7. O-O {[%clk 0:03:07.9]} 7... Nc6 {[%clk 0:03:04.6]} 8. d5 {[%clk 0:03:08.4]}
8... Ne7 {[%clk 0:03:05.9]} 9. Ne1 {[%clk 0:03:08.8]} 9... Nd7 {[%clk
0:03:06.5]} 10. Be3 {[%clk 0:03:09.7]} 10... f5 {[%clk 0:03:07.7]} 11. f3 {[%clk
0:03:11]} 11... f4 {[%clk 0:03:07.2]} 12. Bf2 {[%clk 0:03:12.1]} 12... g5 {[%clk
0:03:08.8]} 13. Nb5 {[%clk 0:03:12.7]} 13... a6 {[%clk 0:03:09.5]} 14. Na7
{[%clk 0:03:12.5]} 14... Rxa7 {[%clk 0:03:10.6]} 15. Bxa7 {[%clk 0:03:13.3]}
15... b6 {[%clk 0:03:11.8]} 16. b4 {[%clk 0:03:14.4]} 16... Rf6 {[%clk
0:03:08.7]} 17. Rc1 {[%clk 0:03:11.5]} 17... Rh6 {[%clk 0:03:03.8]} 18. c5
{[%clk 0:03:08.3]} 18... dxc5 {[%clk 0:03:03.1]} 19. bxc5 {[%clk 0:03:08.7]}
19... Nxc5 {[%clk 0:03:04.4]} 20. Rxc5 {[%clk 0:03:08.6]} 20... bxc5 {[%clk
0:03:05.5]} 21. Bxc5 {[%clk 0:03:09.1]} 21... Qe8 {[%clk 0:03:06]} 22. Kh1
{[%clk 0:03:06.3]} 22... Qh5 {[%clk 0:03:05.6]} 23. Bg1 {[%clk 0:03:06.2]} 23...
Qf7 {[%clk 0:02:46.6]} 24. Nd3 {[%clk 0:03:03.2]} 24... Kh8 {[%clk 0:02:42.9]}
25. Nc5 {[%clk 0:03:00]} 25... Ng8 {[%clk 0:02:38.3]} 26. Qb3 {[%clk 0:02:49.6]}
26... Rb6 {[%clk 0:02:31.8]} 27. Qc2 {[%clk 0:02:35.3]} 27... Rg6 {[%clk
0:02:27.5]} 28. Bc4 {[%clk 0:02:30.3]} 28... Qe7 {[%clk 0:02:11.7]} 29. Ne6
{[%clk 0:02:29]} 29... g4 {[%clk 0:02:12.8]} 30. fxg4 {[%clk 0:02:25]} 30...
Rxg4 {[%clk 0:02:11.6]} 31. Bb3 {[%clk 0:02:25]} 31... Nf6 {[%clk 0:01:56.5]}
32. Rf3 {[%clk 0:02:24.3]} 32... Ne8 {[%clk 0:01:15]} 33. Rc3 {[%clk 0:02:05.2]}
33... Bxe6 {[%clk 0:00:43.1]} 34. dxe6 {[%clk 0:02:05.1]} 34... Bf6 {[%clk
0:00:44.6]} 35. Rd3 {[%clk 0:01:53.7]} 35... Nd6 {[%clk 0:00:42.7]} 36. Qc6
{[%clk 0:01:46.6]} 36... h5 {[%clk 0:00:36.7]} 37. Qd7 {[%clk 0:01:43]} 37...
Nxe4 {[%clk 0:00:33.9]} 38. Qxe7 {[%clk 0:01:36.5]} 38... Bxe7 {[%clk
0:00:35.8]} 39. Rd7 {[%clk 0:01:35.3]} 39... Rg7 {[%clk 0:00:29.7]} 40. Bc2
{[%clk 0:01:21.5]} 40... Nc5 {[%clk 0:00:27.1]} 41. Rxc7 {[%clk 0:01:20]} 41...
Nxe6 {[%clk 0:00:27.6]} 42. Rc6 {[%clk 0:01:12.7]} 42... Nd4 {[%clk 0:00:27.8]}
43. Rc8+ {[%clk 0:00:57.4]} 43... Rg8 {[%clk 0:00:28.3]} 44. Rxg8+ {[%clk
0:00:58.2]} 44... Kxg8 {[%clk 0:00:30.2]} 45. Bxd4 {[%clk 0:00:58]} 45... exd4
{[%clk 0:00:32.1]} 46. Bd3 {[%clk 0:00:59]} 46... a5 {[%clk 0:00:31.2]} 47. a4
{[%clk 0:00:59.3]} 47... Kf7 {[%clk 0:00:25.1]} 48. Kg1 {[%clk 0:01:00.4]} 48...
Bd6 {[%clk 0:00:19.8]} 49. Kf2 {[%clk 0:01:00.2]} 49... Kf6 {[%clk 0:00:18.5]}
50. Kf3 {[%clk 0:00:59.8]} 50... Ke5 {[%clk 0:00:20]} 51. h3 {[%clk 0:00:59.7]}
51... Kd5 {[%clk 0:00:21.1]} 52. Ke2 {[%clk 0:01:00.5]} 52... Kc5 {[%clk
0:00:22.3]} 53. Bb5 {[%clk 0:01:01]} 53... Kb4 {[%clk 0:00:20.7]} 54. Kd3 {[%clk
0:01:02.1]} 54... Bc5 {[%clk 0:00:20.6]} 55. Be8 {[%clk 0:01:00.7]} 55... h4
{[%clk 0:00:21.4]} 56. Bb5 {[%clk 0:01:01.6]} 56... Kb3 {[%clk 0:00:22.8]} 57.
Bc6 {[%clk 0:01:01.5]} 57... Bb6 {[%clk 0:00:20.6]} 58. Bb5 {[%clk 0:01:02.4]}
58... Kb4 {[%clk 0:00:20.7]} 59. Bc6 {[%clk 0:01:03.3]} 59... f3 {[%clk
0:00:20.8]} 60. gxf3 {[%clk 0:01:02.1]} 60... Kc5 {[%clk 0:00:22.3]} 61. Be4
{[%clk 0:00:55.3]} 61... Bc7 {[%clk 0:00:22.3]} 62. Bf5 {[%clk 0:00:53.8]} 62...
Bf4 {[%clk 0:00:14.8]} 63. Bd7 {[%clk 0:00:49.5]} 63... Kd5 {[%clk 0:00:15.4]}
64. Bc8 {[%clk 0:00:48.4]} 64... Be3 {[%clk 0:00:15]} 65. Bg4 {[%clk 0:00:48.1]}
65... Ke5 {[%clk 0:00:16.4]} 66. Bc8 {[%clk 0:00:48.2]} 66... Kf4 {[%clk
0:00:17]} 67. Bg4 {[%clk 0:00:48.5]} 67... Kg3 {[%clk 0:00:17.9]} 68. Ke4 {[%clk
0:00:47.3]} 68... Kf2 {[%clk 0:00:12]} 69. Kd3 {[%clk 0:00:48.2]} 69... Kg2
{[%clk 0:00:11.5]} 70. Ke4 {[%clk 0:00:42.8]} 70... Kg3 {[%clk 0:00:11.2]} 71.
Kd3 {[%clk 0:00:43.6]} 71... Kf4 {[%clk 0:00:12.1]} 1/2-1/2

[Event "*** Titled Tuesday Blitz"]
[Site "Chess.com"]
[Date "2019.06.04"]
[Round "5"]
[White "Poghosyan_Suren"]
[Black "FelixBlohberger"]
[Result "0-1"]
[WhiteElo "2556"]
[BlackElo "2621"]
[TimeControl "180+2"]
[EndTime "14:08:31 PDT"]
[Termination "FelixBlohberger won by resignation"]

1. Nf3 {[%clk 0:03:01.9]} 1... d5 {[%clk 0:02:56.3]} 2. c4 {[%clk 0:03:03]} 2...
e6 {[%clk 0:02:56.7]} 3. g3 {[%clk 0:03:03.7]} 3... dxc4 {[%clk 0:02:57.5]} 4.
Qa4+ {[%clk 0:03:01.6]} 4... Bd7 {[%clk 0:02:57.6]} 5. Qxc4 {[%clk 0:03:02.7]}
5... c5 {[%clk 0:02:59.2]} 6. Bg2 {[%clk 0:03:03.8]} 6... Bc6 {[%clk 0:02:59.9]}
7. O-O {[%clk 0:03:03]} 7... Nd7 {[%clk 0:03:01.4]} 8. b3 {[%clk 0:03:02.2]}
8... Ngf6 {[%clk 0:03:01.4]} 9. Bb2 {[%clk 0:03:03.1]} 9... Be7 {[%clk
0:03:02.6]} 10. d3 {[%clk 0:03:01.7]} 10... O-O {[%clk 0:03:03.5]} 11. e4 {[%clk
0:03:02.9]} 11... b5 {[%clk 0:03:04.1]} 12. Qc2 {[%clk 0:03:03.6]} 12... Qb6
{[%clk 0:03:04.8]} 13. Nbd2 {[%clk 0:02:59.4]} 13... Rfd8 {[%clk 0:03:05.7]} 14.
a4 {[%clk 0:02:59.4]} 14... a6 {[%clk 0:03:04.6]} 15. Rfc1 {[%clk 0:02:44.1]}
15... Qb7 {[%clk 0:02:56.2]} 16. Nd4 {[%clk 0:02:39]} 16... cxd4 {[%clk
0:02:31.5]} 17. Qxc6 {[%clk 0:02:37.1]} 17... Qxc6 {[%clk 0:02:32.3]} 18. Rxc6
{[%clk 0:02:39]} 18... Ne5 {[%clk 0:02:33.8]} 19. Rc7 {[%clk 0:02:27.7]} 19...
Bb4 {[%clk 0:02:23.7]} 20. Nf3 {[%clk 0:02:03.7]} 20... Nxd3 {[%clk 0:01:38]}
21. Bxd4 {[%clk 0:01:15.3]} 21... bxa4 {[%clk 0:01:34.9]} 22. Bxf6 {[%clk
0:01:11.9]} 22... gxf6 {[%clk 0:01:33.3]} 23. Rxa4 {[%clk 0:01:11.8]} 23... a5
{[%clk 0:01:29.6]} 24. e5 {[%clk 0:00:59.8]} 24... Nxe5 {[%clk 0:01:24.2]} 25.
Nxe5 {[%clk 0:00:43.9]} 25... Rd1+ {[%clk 0:01:24.7]} 26. Bf1 {[%clk 0:00:45.8]}
26... fxe5 {[%clk 0:01:26.1]} 27. Kg2 {[%clk 0:00:47.7]} 27... Rad8 {[%clk
0:01:21.5]} 28. Ra2 {[%clk 0:00:45]} 28... R8d2 {[%clk 0:00:39.9]} 29. Rcc2
{[%clk 0:00:44.4]} 29... Rxc2 {[%clk 0:00:25.9]} 30. Rxc2 {[%clk 0:00:46.3]}
30... Rb1 {[%clk 0:00:27]} 31. Bc4 {[%clk 0:00:45.9]} 31... Kg7 {[%clk
0:00:24.1]} 32. Re2 {[%clk 0:00:45.1]} 32... Kf6 {[%clk 0:00:24.1]} 33. g4
{[%clk 0:00:45.4]} 33... Rc1 {[%clk 0:00:22.1]} 34. Bb5 {[%clk 0:00:31.6]} 34...
Rc3 {[%clk 0:00:21.4]} 35. Ba4 {[%clk 0:00:29.8]} 35... Kg5 {[%clk 0:00:19.4]}
36. h3 {[%clk 0:00:28.9]} 36... Kf6 {[%clk 0:00:06]} 37. Re3 {[%clk 0:00:23.6]}
37... Rc2 {[%clk 0:00:05.2]} 38. Rf3+ {[%clk 0:00:22.2]} 38... Ke7 {[%clk
0:00:06.5]} 39. Bb5 {[%clk 0:00:23]} 39... Bc5 {[%clk 0:00:07]} 40. h4 {[%clk
0:00:21.8]} 40... h6 {[%clk 0:00:05.9]} 41. g5 {[%clk 0:00:21.4]} 41... hxg5
{[%clk 0:00:07.8]} 42. h5 {[%clk 0:00:22.8]} 42... g4 {[%clk 0:00:08]} 43. Rg3
{[%clk 0:00:20.3]} 43... Rxf2+ {[%clk 0:00:09.1]} 44. Kh1 {[%clk 0:00:22.2]}
44... f5 {[%clk 0:00:06.4]} 45. Rd3 {[%clk 0:00:22.5]} 45... Rf1+ {[%clk
0:00:04]} 46. Kg2 {[%clk 0:00:23]} 46... Rg1+ {[%clk 0:00:05]} 47. Kh2 {[%clk
0:00:24.9]} 47... Kf6 {[%clk 0:00:05.1]} 48. Rc3 {[%clk 0:00:24.1]} 48... Bd4
{[%clk 0:00:04.9]} 49. Rd3 {[%clk 0:00:24.8]} 49... Rc1 {[%clk 0:00:03.3]} 50.
Be8 {[%clk 0:00:21.6]} 50... Kg5 {[%clk 0:00:04.2]} 51. Bg6 {[%clk 0:00:21.7]}
51... Rc2+ {[%clk 0:00:04.8]} 52. Kh1 {[%clk 0:00:22.3]} 52... Re2 {[%clk
0:00:04.9]} 53. b4 {[%clk 0:00:20.9]} 53... axb4 {[%clk 0:00:05.4]} 54. Rd1
{[%clk 0:00:20.5]} 54... g3 {[%clk 0:00:05.7]} 55. Rg1 {[%clk 0:00:20.7]} 55...
Bxg1 {[%clk 0:00:06.2]} 56. Kxg1 {[%clk 0:00:21.4]} 56... f4 {[%clk 0:00:07.4]}
57. h6 {[%clk 0:00:23.1]} 57... Kxh6 {[%clk 0:00:08.3]} 58. Bd3 {[%clk
0:00:23.8]} 58... Rd2 {[%clk 0:00:09.3]} 59. Be4 {[%clk 0:00:24.5]} 59... b3
{[%clk 0:00:10.6]} 60. Kf1 {[%clk 0:00:26.1]} 60... b2 {[%clk 0:00:11.6]} 61.
Bb1 {[%clk 0:00:27.7]} 61... f3 {[%clk 0:00:11.7]} 62. Ke1 {[%clk 0:00:27.8]}
62... Re2+ {[%clk 0:00:12.9]} 63. Kf1 {[%clk 0:00:27.2]} 63... Rh2 {[%clk
0:00:12.7]} 64. Kg1 {[%clk 0:00:29.1]} 64... Rd2 {[%clk 0:00:13.6]} 65. Bc2
{[%clk 0:00:29.2]} 0-1

[Event "*** Titled Tuesday Blitz"]
[Site "Chess.com"]
[Date "2019.06.04"]
[Round "5"]
[White "ehrenfeld"]
[Black "MFBerna"]
[Result "1-0"]
[WhiteElo "2504"]
[BlackElo "2369"]
[TimeControl "180+2"]
[EndTime "14:08:31 PDT"]
[Termination "ehrenfeld won by resignation"]

1. e4 {[%clk 0:03:01.9]} 1... c6 {[%clk 0:03:00.8]} 2. d4 {[%clk 0:03:02.4]}
2... d5 {[%clk 0:03:02.7]} 3. exd5 {[%clk 0:03:03.5]} 3... cxd5 {[%clk
0:03:04.6]} 4. Bd3 {[%clk 0:03:04.4]} 4... Nc6 {[%clk 0:03:05.6]} 5. c3 {[%clk
0:03:05.3]} 5... g6 {[%clk 0:03:04.4]} 6. Bf4 {[%clk 0:03:05]} 6... Bg7 {[%clk
0:03:04.4]} 7. Nf3 {[%clk 0:03:06]} 7... Nf6 {[%clk 0:03:04.9]} 8. O-O {[%clk
0:03:06.7]} 8... Bg4 {[%clk 0:03:05.7]} 9. Nbd2 {[%clk 0:03:05.6]} 9... O-O
{[%clk 0:03:06.4]} 10. Re1 {[%clk 0:03:06.6]} 10... Rc8 {[%clk 0:03:05.1]} 11.
h3 {[%clk 0:03:07.3]} 11... Bf5 {[%clk 0:03:06]} 12. Bf1 {[%clk 0:03:07.8]}
12... Ne4 {[%clk 0:02:57.3]} 13. Nxe4 {[%clk 0:03:06.9]} 13... dxe4 {[%clk
0:02:56.4]} 14. Nd2 {[%clk 0:03:01]} 14... e5 {[%clk 0:02:37.5]} 15. dxe5 {[%clk
0:03:00.9]} 15... e3 {[%clk 0:02:29.6]} 16. Rxe3 {[%clk 0:02:50.9]} 16... Re8
{[%clk 0:02:26.4]} 17. Nc4 {[%clk 0:02:50.4]} 17... Qxd1 {[%clk 0:02:23]} 18.
Rxd1 {[%clk 0:02:50.6]} 18... Rcd8 {[%clk 0:02:18.7]} 19. Rxd8 {[%clk
0:02:48.2]} 19... Rxd8 {[%clk 0:02:20.6]} 20. Re1 {[%clk 0:02:47.5]} 20... a6
{[%clk 0:02:14.2]} 21. Nd6 {[%clk 0:02:46.2]} 21... Be6 {[%clk 0:02:10]} 22.
Nxb7 {[%clk 0:02:36.7]} 22... Rb8 {[%clk 0:02:11]} 23. Nc5 {[%clk 0:02:33.4]}
23... Rxb2 {[%clk 0:02:10.2]} 24. Nxe6 {[%clk 0:02:28.5]} 24... fxe6 {[%clk
0:02:12.1]} 25. Bxa6 {[%clk 0:02:25.4]} 25... Kf7 {[%clk 0:02:11.1]} 26. Bc4
{[%clk 0:02:19.4]} 26... Rc2 {[%clk 0:02:10]} 27. Rc1 {[%clk 0:01:48.9]} 27...
Rb2 {[%clk 0:02:01.3]} 28. Re1 {[%clk 0:01:28.8]} 28... Rc2 {[%clk 0:02:01.8]}
29. Re3 {[%clk 0:01:30]} 29... g5 {[%clk 0:01:54]} 30. Bxg5 {[%clk 0:01:21]}
30... Bxe5 {[%clk 0:01:45.1]} 31. g3 {[%clk 0:01:21.2]} 31... Rxc3 {[%clk
0:01:28.4]} 32. Rxc3 {[%clk 0:01:16.8]} 32... Bxc3 {[%clk 0:01:30.3]} 33. a4
{[%clk 0:01:16.5]} 33... Ne5 {[%clk 0:01:25.2]} 34. Be2 {[%clk 0:01:16.1]} 34...
Nc6 {[%clk 0:01:17.2]} 35. Be3 {[%clk 0:01:14]} 35... Nd4 {[%clk 0:01:18.5]} 36.
Bc4 {[%clk 0:01:12.6]} 36... Kf6 {[%clk 0:01:18.8]} 37. Kg2 {[%clk 0:01:13.8]}
37... e5 {[%clk 0:01:18.8]} 38. h4 {[%clk 0:01:14.1]} 38... Nf5 {[%clk
0:01:16.5]} 39. Bg5+ {[%clk 0:01:12.1]} 39... Kg7 {[%clk 0:01:13.5]} 40. Kf3
{[%clk 0:01:10.9]} 40... h6 {[%clk 0:01:11.9]} 41. Bc1 {[%clk 0:01:08.8]} 41...
Kf6 {[%clk 0:01:10.8]} 42. Ke4 {[%clk 0:01:01.4]} 42... Bd4 {[%clk 0:01:07.7]}
43. Kf3 {[%clk 0:00:40.2]} 43... e4+ {[%clk 0:01:06.1]} 44. Kxe4 {[%clk
0:00:39.8]} 44... Bxf2 {[%clk 0:01:06.9]} 45. Bb2+ {[%clk 0:00:38.1]} 45... Kg6
{[%clk 0:01:08.3]} 46. h5+ {[%clk 0:00:38]} 46... Kg5 {[%clk 0:01:09.2]} 47.
Bc1+ {[%clk 0:00:38.4]} 47... Kf6 {[%clk 0:01:10.5]} 48. g4 {[%clk 0:00:37.2]}
48... Nd6+ {[%clk 0:00:34.2]} 49. Kd5 {[%clk 0:00:38.3]} 49... Nf7 {[%clk
0:00:35.5]} 50. a5 {[%clk 0:00:33.8]} 50... Ng5 {[%clk 0:00:16.8]} 51. a6 {[%clk
0:00:32.1]} 51... Nf3 {[%clk 0:00:11.9]} 52. Bxh6 {[%clk 0:00:22.3]} 52... Ba7
{[%clk 0:00:11.8]} 53. Bc1 {[%clk 0:00:17]} 53... Ng5 {[%clk 0:00:10.3]} 54.
Bb2+ {[%clk 0:00:16.1]} 54... Ke7 {[%clk 0:00:11.4]} 55. Ke5 {[%clk 0:00:16.4]}
55... Nf3+ {[%clk 0:00:11.3]} 56. Kf5 {[%clk 0:00:16.2]} 56... Be3 {[%clk
0:00:09.7]} 57. h6 {[%clk 0:00:14.4]} 57... Kf8 {[%clk 0:00:08.7]} 58. h7 {[%clk
0:00:13.5]} 58... Bd4 {[%clk 0:00:09.9]} 59. a7 {[%clk 0:00:12.1]} 59... Nh4+
{[%clk 0:00:09.5]} 60. Ke4 {[%clk 0:00:11.7]} 1-0